bitfinex-derivatives/quotes_BTCF0:USTF0_20260314
["timestamp","ask_amount","ask_price","bid_price","bid_amount"]
[1773476440264,0.08434332,70667.0,70656.0,0.042452]
[1773476441866,0.08427457,70671.0,70640.0,0.26172264]
[1773476442164,0.08427594,70652.0,70640.0,0.00774]
[1773476442354,0.042448,70664.0,70650.0,0.042455]
[1773476442549,0.0014,70657.0,70650.0,0.042455]
[1773476442962,0.0014,70656.0,70650.0,0.042455]
[1773476444665,0.0014,70656.0,70638.0,0.25398264]
[1773476445966,0.0014,70656.0,70647.0,0.042457]
[1773476448766,0.0014,70656.0,70644.0,0.042459]
[1773476449268,0.0014,70653.0,70642.0,0.042461]
[1773476449465,0.0014,70653.0,70643.0,0.04246]
[1773476455373,0.08411038,70654.0,70639.0,0.25398264]
[1773476455570,0.12656538,70652.0,70640.0,0.042462]
[1773476456065,0.0014,70648.0,70641.0,0.042461]
[1773476456267,0.00144,70647.0,70641.0,0.042461]
[1773476457163,0.00144,70647.0,70638.0,0.25398264]
[1773476457369,0.00144,70647.0,70639.0,0.042462]
[1773476457564,0.00144,70647.0,70640.0,0.042462]
[1773476457767,0.00144,70646.0,70635.0,0.25398264]
[1773476457969,0.00144,70645.0,70635.0,0.25398264]
[1773476458165,0.08410228,70656.0,70635.0,0.25398264]
[1773476458166,0.00144,70644.0,70635.0,0.25398264]
[1773476458361,0.00144,70643.0,70635.0,0.25398264]
[1773476458567,0.00144,70642.0,70635.0,0.25398264]
[1773476458969,0.00144,70643.0,70641.0,0.042461]
[1773476459969,0.00144,70643.0,70641.0,0.043461]
[1773476462777,0.00144,70644.0,70641.0,0.043461]
[1773476463371,0.00144,70644.0,70641.0,0.042461]
[1773476463674,0.00144,70644.0,70641.0,0.043461]
[1773476463869,0.00144,70644.0,70641.0,0.042461]
[1773476465870,0.08427917,70660.0,70640.0,0.0740051]
[1773476466063,0.00144,70659.0,70650.0,0.0740051]
[1773476466262,0.00144,70658.0,70651.0,0.042455]
[1773476466576,0.00144,70657.0,70650.0,0.1164611]
[1773476466771,0.00144,70656.0,70650.0,0.1164611]
[1773476467175,0.00144,70656.0,70650.0,0.042456]
[1773476471368,0.08417601,70670.0,70646.0,0.0740051]
[1773476471572,0.042446,70667.0,70660.0,0.0740051]
[1773476471772,0.00144,70666.0,70660.0,0.0740051]
[1773476472169,0.00144,70665.0,70660.0,0.0740051]
[1773476472669,0.00144,70664.0,70660.0,0.0740051]
[1773476472982,0.00144,70664.0,70654.0,0.1164581]
[1773476473283,0.00144,70663.0,70654.0,0.1164581]
[1773476473477,0.042444,70671.0,70654.0,0.0740051]
[1773476473683,0.042445,70669.0,70660.0,0.0740051]
[1773476474291,0.00144,70668.0,70660.0,0.0740051]
[1773476484498,0.042444,70671.0,70660.0,0.0740051]
[1773476484699,0.0014,70667.0,70660.0,0.0740051]
[1773476485600,0.0014,70667.0,70658.0,0.042451]
[1773476487808,0.0014,70667.0,70659.0,0.04245]
[1773476488199,0.0014,70667.0,70657.0,0.1164131]
[1773476492309,0.0014,70667.0,70658.0,0.042451]
[1773476497112,0.0014,70667.0,70659.0,0.04245]
[1773476498810,0.0014,70667.0,70657.0,0.0739621]
[1773476498811,0.00528,70672.0,70657.0,0.0739621]
[1773476499015,0.0014,70671.0,70657.0,0.0739621]
[1773476499210,0.0014,70671.0,70661.0,0.0739621]
[1773476499508,1e-06,70672.0,70661.0,0.0739621]
[1773476499509,0.0014,70670.0,70661.0,0.0739621]
[1773476500014,0.0014,70669.0,70664.0,0.042447]
[1773476500615,0.0014,70668.0,70664.0,0.042447]
[1773476500812,0.0014,70667.0,70664.0,0.042447]
[1773476501003,0.0014,70666.0,70664.0,0.042447]
[1773476503908,0.08535403,70666.0,70658.0,0.042451]
[1773476504108,0.08535403,70666.0,70652.0,0.25398264]
[1773476504415,0.0014,70666.0,70659.0,0.04245]
[1773476504612,0.0014,70665.0,70661.0,0.042449]
[1773476504806,1e-06,70672.0,70670.0,0.042444]
[1773476505109,0.0014,70672.0,70669.0,0.042444]
[1773476505517,0.042437,70682.0,70669.0,0.042444]
[1773476505713,0.0014,70680.0,70669.0,0.042444]
[1773476505912,0.0014,70680.0,70672.0,0.00887]
[1773476506809,0.0014,70679.0,70672.0,0.00887]
[1773476507614,0.08490899,70684.0,70672.0,0.00887]
[1773476507821,0.0014,70678.0,70672.0,0.00887]
[1773476509820,0.042437,70683.0,70672.0,0.00887]
[1773476510016,0.0014,70680.0,70672.0,0.00887]
[1773476517123,0.08490899,70684.0,70672.0,0.051312]
[1773476517426,0.08433256,70689.0,70672.0,0.00887]
[1773476517931,0.0014,70688.0,70672.0,0.00887]
[1773476518129,0.08433256,70689.0,70670.0,0.0739621]
[1773476518322,0.0014,70688.0,70670.0,0.0739621]
[1773476518629,0.08433256,70689.0,70670.0,0.0739621]
[1773476518824,0.0014,70688.0,70670.0,0.0739621]
[1773476519020,0.042435,70686.0,70674.0,0.042441]
[1773476519227,0.0014,70685.0,70674.0,0.042441]
[1773476519730,0.00668,70684.0,70674.0,0.042441]
[1773476520132,0.00528,70684.0,70674.0,0.042441]
[1773476520332,0.0014,70683.0,70674.0,0.0739621]
[1773476520633,0.0014,70682.0,70678.0,0.042439]
[1773476521022,0.00528,70684.0,70678.0,0.042439]
[1773476521230,0.0014,70683.0,70678.0,0.042439]
[1773476521532,0.0014,70682.0,70678.0,0.042439]
[1773476521735,0.0014,70681.0,70678.0,0.042439]
[1773476522229,0.12677899,70690.0,70678.0,0.042439]
[1773476522439,0.0014,70690.0,70686.0,0.0739621]
[1773476522628,0.0014,70690.0,70686.0,0.02009214]
[1773476522937,0.10956779,70707.0,70686.0,0.02009214]
[1773476523125,0.06838428,70706.0,70686.0,0.02009214]
[1773476524023,0.06838428,70706.0,70694.0,0.042429]
[1773476524236,0.06698428,70706.0,70694.0,0.042429]
[1773476524428,0.0014,70705.0,70694.0,0.042429]
[1773476525435,0.0014,70705.0,70695.0,0.042428]
[1773476525625,0.00528,70703.0,70695.0,0.042428]
[1773476526026,0.0014,70702.0,70695.0,0.042428]
[1773476529737,0.0014,70702.0,70690.0,0.10932596]
[1773476530037,0.0014,70701.0,70700.0,0.0739621]
[1773476530239,0.0014,70701.0,70698.0,0.042427]
[1773476530431,0.10953706,70711.0,70700.0,0.0739621]
[1773476530729,0.04382,70710.0,70700.0,0.0739621]
[1773476530930,0.06711706,70711.0,70700.0,0.0739621]
[1773476531137,0.0014,70710.0,70700.0,0.0739621]
[1773476531331,0.0014,70709.0,70700.0,0.0739621]
[1773476531537,0.0014,70708.0,70700.0,0.0739621]
[1773476531732,0.0014,70707.0,70700.0,0.0739621]
[1773476531940,0.0014,70706.0,70700.0,0.0739621]
[1773476532135,0.0014,70705.0,70696.0,0.1163901]
[1773476532333,0.0014,70704.0,70696.0,0.042428]
[1773476532640,0.0014,70703.0,70696.0,0.042428]
[1773476533730,0.0014,70703.0,70697.0,0.042427]
[1773476535534,0.042416,70718.0,70704.0,0.042423]
[1773476535739,0.042416,70717.0,70708.0,0.0739621]
[1773476536334,0.043817,70716.0,70708.0,0.0739621]
[1773476536529,0.042417,70716.0,70703.0,0.042424]
[1773476536734,0.0014,70715.0,70703.0,0.042424]
[1773476543541,0.042415,70718.0,70705.0,0.042423]
[1773476543740,0.0014,70717.0,70705.0,0.042423]
[1773476543940,0.043816,70717.0,70703.0,0.042424]
[1773476544144,0.0014,70716.0,70704.0,0.042423]
[1773476544540,0.042416,70717.0,70704.0,0.042423]
[1773476544741,0.0014,70716.0,70704.0,0.042423]
[1773476545045,0.042417,70716.0,70704.0,0.042423]
[1773476545247,0.0014,70715.0,70704.0,0.042423]
[1773476549251,0.0014,70714.0,70705.0,0.07125152]
[1773476549451,0.0014,70713.0,70708.0,0.042421]
[1773476549648,0.0014,70712.0,70708.0,0.042421]
[1773476549849,0.0014,70711.0,70708.0,0.042421]
[1773476550053,0.0014,70710.0,70708.0,0.042421]
[1773476550253,0.11649773,70722.0,70709.0,0.04242]
[1773476550452,0.0014,70721.0,70709.0,0.04242]
[1773476558858,0.07408473,70718.0,70691.0,0.07125152]
[1773476559056,0.11650573,70708.0,70695.0,0.042429]
[1773476559262,0.0014,70707.0,70689.0,0.00527]
[1773476559565,0.0014,70707.0,70695.0,0.042428]
[1773476560460,0.0014,70707.0,70696.0,0.042428]
[1773476561262,0.0014,70707.0,70689.0,0.07652152]
[1773476561459,0.042423,70705.0,70692.0,0.04243]
[1773476561859,0.0014,70707.0,70689.0,0.07652152]
[1773476562461,0.0014,70707.0,70689.0,0.07125152]
[1773476563058,0.0014,70707.0,70695.0,0.042429]
[1773476563758,0.043822,70707.0,70693.0,0.04243]
[1773476563961,0.042423,70706.0,70693.0,0.04243]
[1773476564558,0.07548473,70707.0,70693.0,0.04243]
[1773476564959,0.042421,70708.0,70694.0,0.042429]
[1773476565159,0.0014,70707.0,70694.0,0.042429]
[1773476573854,0.043822,70707.0,70694.0,0.042429]
[1773476580863,0.043822,70707.0,70695.0,0.042429]
[1773476586675,0.042421,70709.0,70696.0,0.042428]
[1773476586870,0.042421,70709.0,70698.0,0.042427]
[1773476587074,0.0014,70708.0,70697.0,0.042427]
[1773476587463,0.050687,70716.0,70703.0,0.042424]
[1773476587666,0.0014,70715.0,70703.0,0.042424]
[1773476589671,0.07187644,70728.0,70705.0,0.042423]
[1773476589874,0.0014,70727.0,70706.0,0.06622588]
[1773476590072,0.07327644,70727.0,70706.0,0.06622588]
[1773476590269,0.07187644,70727.0,70706.0,0.06622588]
[1773476590579,0.07969644,70725.0,70706.0,0.06622588]
[1773476590876,0.07969644,70725.0,70705.0,0.042423]
[1773476591073,0.042415,70719.0,70705.0,0.042423]
[1773476591281,0.0014,70718.0,70705.0,0.042423]
[1773476591574,0.07187644,70714.0,70693.0,0.06622588]
[1773476591878,0.042417,70715.0,70701.0,0.042425]
[1773476592273,0.0014,70714.0,70701.0,0.06622588]
[1773476592579,0.0014,70713.0,70709.0,0.06622588]
[1773476592781,0.0014,70712.0,70709.0,0.06622588]
[1773476592975,0.0014,70711.0,70709.0,0.06622588]
[1773476593176,0.0014,70710.0,70709.0,0.06622588]
[1773476593873,0.00782,70714.0,70709.0,0.06622588]
[1773476594179,0.0014,70713.0,70709.0,0.06622588]
[1773476594480,0.0014,70712.0,70709.0,0.06622588]
[1773476595078,0.0014,70716.0,70709.0,0.10864588]
[1773476595775,0.0014,70715.0,70712.0,0.06622588]
[1773476595970,0.0014,70714.0,70712.0,0.06622588]
[1773476596170,0.0014,70713.0,70712.0,0.06622588]
[1773476599075,0.042412,70723.0,70712.0,0.06622588]
[1773476599281,0.0028,70718.0,70712.0,0.06622588]
[1773476600371,0.0014,70722.0,70712.0,0.06622588]
[1773476600677,0.042412,70723.0,70712.0,0.06622588]
[1773476600881,0.0014,70722.0,70712.0,0.06622588]
[1773476601081,0.0028,70718.0,70712.0,0.06622588]
[1773476601273,0.0014,70717.0,70712.0,0.06622588]
[1773476605583,0.0014,70717.0,70712.0,0.042418]
[1773476605884,0.0014,70716.0,70713.0,0.06904858]
[1773476606077,0.0014,70715.0,70713.0,0.06904858]
[1773476606272,0.0014,70715.0,70703.0,0.00527]
[1773476606273,0.0014,70715.0,70710.0,0.04242]
[1773476606785,0.0014,70715.0,70714.0,0.042418]
[1773476606986,0.0007069,70731.0,70718.0,0.042415]
[1773476606987,0.0431149,70731.0,70718.0,0.042415]
[1773476607284,0.0014,70730.0,70718.0,0.042415]
[1773476607877,0.0014,70730.0,70719.0,0.042414]
[1773476610976,0.0007069,70731.0,70717.0,0.042416]
[1773476611183,0.0014,70729.0,70717.0,0.042416]
[1773476611774,0.0014,70729.0,70703.0,0.00977]
[1773476611983,0.0014,70729.0,70704.0,0.06904858]
[1773476612185,0.0007069,70731.0,70704.0,0.06904858]
[1773476612487,0.042409,70728.0,70716.0,0.042416]
[1773476614686,0.0014,70727.0,70716.0,0.042416]
[1773476616790,0.0014,70727.0,70707.0,0.06904858]
[1773476618089,0.0014,70727.0,70711.0,0.042419]
[1773476618989,0.042412,70724.0,70711.0,0.042419]
[1773476620195,0.042412,70723.0,70711.0,0.042419]
[1773476620384,0.06878468,70727.0,70707.0,0.06904858]
[1773476620693,0.06878468,70727.0,70703.0,0.33280122]
[1773476620884,0.06878468,70727.0,70709.0,0.04242]
[1773476621691,0.042413,70722.0,70709.0,0.04242]
[1773476625296,0.0007069,70731.0,70710.0,0.14290772]
[1773476625497,0.04241,70727.0,70711.0,0.06904858]
[1773476626087,0.042408,70730.0,70718.0,0.042415]
[1773476626290,0.0014,70729.0,70718.0,0.042415]
[1773476628596,0.042408,70730.0,70718.0,0.042415]
[1773476628894,0.0014,70729.0,70718.0,0.042415]
[1773476629294,0.0014,70728.0,70718.0,0.042415]
[1773476633894,0.042408,70730.0,70718.0,0.042415]
[1773476634200,0.0014,70729.0,70719.0,0.06645669]
[1773476637299,0.0014,70729.0,70719.0,0.10887069]
[1773476638901,0.0014,70728.0,70719.0,0.10887069]
[1773476641505,0.0007069,70731.0,70721.0,0.042413]
[1773476641694,0.0014,70730.0,70719.0,0.10887069]
[1773476650712,0.043808,70730.0,70717.0,0.042415]
[1773476655118,0.043808,70730.0,70718.0,0.042415]
[1773476658312,0.0007069,70731.0,70720.0,0.07385914]
[1773476658513,0.0014,70730.0,70718.0,0.06645669]
[1773476659614,0.0014,70730.0,70720.0,0.042413]
[1773476659818,0.0007069,70731.0,70720.0,0.042413]
[1773476660019,0.0014,70730.0,70720.0,0.042413]
[1773476663331,0.0014,70730.0,70721.0,0.042413]
[1773476664332,0.0007069,70731.0,70721.0,0.042413]
[1773476664524,0.0014,70730.0,70721.0,0.042413]
[1773476664832,0.0007069,70731.0,70721.0,0.042413]
[1773476665131,0.0014,70730.0,70721.0,0.042413]
[1773476665331,0.0007069,70731.0,70721.0,0.042413]
[1773476665536,0.0014,70730.0,70721.0,0.042413]
[1773476665830,0.0007069,70731.0,70721.0,0.042413]
[1773476666030,0.0014,70730.0,70721.0,0.10760991]
[1773476666226,0.042402,70740.0,70727.0,0.04241]
[1773476666431,0.043803,70739.0,70727.0,0.04241]
[1773476668137,0.042404,70738.0,70725.0,0.042411]
[1773476670030,0.0014,70737.0,70725.0,0.042411]
[1773476670838,0.043804,70737.0,70725.0,0.042411]
[1773476671234,0.044804,70737.0,70725.0,0.042411]
[1773476671837,0.0024,70737.0,70725.0,0.042411]
[1773476672638,0.0024,70737.0,70726.0,0.04241]
[1773476674238,0.0014,70737.0,70726.0,0.04241]
[1773476674439,0.0024,70737.0,70726.0,0.04241]
[1773476677745,0.06410065,70733.0,70710.0,0.25398264]
[1773476678041,0.06410065,70725.0,70713.0,0.042418]
[1773476678242,0.0014,70724.0,70713.0,0.042418]
[1773476678736,0.042413,70723.0,70710.0,0.04242]
[1773476679836,0.042413,70723.0,70711.0,0.042419]
[1773476680041,0.0014,70724.0,70711.0,0.042419]
[1773476684537,0.043812,70724.0,70711.0,0.042419]
[1773476687245,0.042413,70723.0,70706.0,0.31917955]
[1773476687446,0.10651365,70723.0,70705.0,0.25398264]
[1773476689051,0.10651365,70723.0,70710.0,0.04242]
[1773476689346,0.06289708,70719.0,70703.0,0.00977]
[1773476689550,0.06289708,70719.0,70707.0,0.042421]
[1773476689755,0.042414,70720.0,70707.0,0.042421]
[1773476690048,0.0014,70724.0,70704.0,0.06336269]
[1773476690252,0.0014,70723.0,70710.0,0.13720567]
[1773476690546,0.042412,70723.0,70711.0,0.10578169]
[1773476690748,0.0014,70722.0,70711.0,0.10578169]
[1773476691544,0.042412,70723.0,70711.0,0.10578169]
[1773476691742,0.0014,70721.0,70711.0,0.10578169]
[1773476691943,0.0014,70721.0,70711.0,0.06336269]
[1773476692149,0.0014,70720.0,70711.0,0.06336269]
[1773476694352,0.0014,70720.0,70710.0,0.04242]
[1773476694545,0.0014,70720.0,70708.0,0.042421]
[1773476696056,0.043814,70720.0,70708.0,0.042421]
[1773476703760,0.06535744,70720.0,70703.0,0.00977]
[1773476703959,0.06395744,70714.0,70703.0,0.052194]
[1773476704263,0.042417,70715.0,70703.0,0.052194]
[1773476705454,0.0014,70714.0,70703.0,0.052194]
[1773476708363,0.043818,70714.0,70703.0,0.00977]
[1773476709963,0.043818,70714.0,70702.0,0.042424]
[1773476710551,0.043818,70714.0,70703.0,0.00977]
[1773476714262,0.06395744,70713.0,70703.0,0.00977]
[1773476715366,0.10637644,70713.0,70703.0,0.00977]
[1773476725971,0.0592027,70712.0,70703.0,0.00977]
[1773476726171,0.1016217,70712.0,70703.0,0.00977]
[1773476727473,0.0592027,70712.0,70703.0,0.00977]
[1773476745594,0.0014,70711.0,70703.0,0.00977]
[1773476749798,0.0592027,70712.0,70703.0,0.00977]
[1773476749997,0.0014,70710.0,70703.0,0.00977]
[1773476752503,0.0592027,70712.0,70703.0,0.00977]
[1773476752798,0.0014,70711.0,70703.0,0.00977]
[1773476769810,0.042418,70714.0,70703.0,0.00977]
[1773476770012,0.0014,70713.0,70703.0,0.00977]
[1773476771307,0.042418,70714.0,70703.0,0.00977]
[1773476771609,0.0014,70713.0,70703.0,0.00977]
[1773476779615,0.0014,70712.0,70707.0,0.09605907]
[1773476779811,0.0014,70711.0,70707.0,0.09605907]
[1773476780013,0.042414,70720.0,70707.0,0.09605907]
[1773476780014,0.042414,70720.0,70708.0,0.042421]
[1773476780316,0.0014,70719.0,70709.0,0.04242]
[1773476780517,0.0014,70718.0,70709.0,0.04242]
[1773476780816,0.0028,70716.0,70709.0,0.04242]
[1773476781115,0.0014,70715.0,70709.0,0.04242]
[1773476781509,0.0014,70714.0,70709.0,0.04242]
[1773476781817,0.0014,70713.0,70709.0,0.05110542]
[1773476782020,0.0014,70712.0,70711.0,0.042419]
[1773476782404,0.042412,70723.0,70711.0,0.042419]
[1773476782608,0.0014,70722.0,70711.0,0.042419]
[1773476783021,0.0014,70721.0,70705.0,0.04908008]
[1773476783318,0.0014,70720.0,70712.0,0.042418]
[1773476783519,0.0014,70719.0,70712.0,0.042418]
[1773476783823,0.0014,70718.0,70712.0,0.042418]
[1773476784315,0.0014,70717.0,70712.0,0.042418]
[1773476784523,0.042411,70725.0,70712.0,0.042418]
[1773476784722,0.0014,70724.0,70712.0,0.042418]
[1773476785022,0.042411,70725.0,70712.0,0.042418]
[1773476785323,0.0014,70724.0,70712.0,0.042418]
[1773476785519,0.042411,70725.0,70712.0,0.042418]
[1773476785721,0.0014,70724.0,70712.0,0.042418]
[1773476786023,0.042411,70725.0,70712.0,0.042418]
[1773476786213,0.0014,70724.0,70712.0,0.042418]
[1773476786614,0.0014,70723.0,70712.0,0.042418]
[1773476786926,0.042411,70725.0,70712.0,0.042418]
[1773476787126,0.0014,70724.0,70712.0,0.042418]
[1773476787417,0.042411,70725.0,70712.0,0.042418]
[1773476787622,0.0014,70724.0,70712.0,0.042418]
[1773476787923,0.042411,70725.0,70712.0,0.042418]
[1773476788124,0.0014,70724.0,70712.0,0.042418]
[1773476788427,0.042411,70725.0,70712.0,0.042418]
[1773476788616,0.0014,70724.0,70712.0,0.042418]
[1773476789023,0.0014,70723.0,70712.0,0.042418]
[1773476789415,0.042411,70725.0,70712.0,0.042418]
[1773476789616,0.0014,70724.0,70712.0,0.042418]
[1773476789925,0.042411,70725.0,70712.0,0.042418]
[1773476790122,0.0014,70724.0,70712.0,0.042418]
[1773476790312,0.042411,70725.0,70712.0,0.042418]
[1773476790516,0.0014,70724.0,70712.0,0.042418]
[1773476790717,0.36680066,70730.0,70710.0,0.12242358]
[1773476790718,0.0014,70723.0,70714.0,0.042417]
[1773476791125,0.36680066,70730.0,70714.0,0.042417]
[1773476791332,0.0014,70729.0,70714.0,0.042417]
[1773476791627,0.19819573,70728.0,70714.0,0.042417]
[1773476791827,0.19819573,70727.0,70714.0,0.042417]
[1773476792128,0.19819573,70726.0,70714.0,0.042417]
[1773476792322,0.19819573,70725.0,70714.0,0.042417]
[1773476792621,0.19819573,70724.0,70714.0,0.042417]
[1773476792822,0.0014,70723.0,70714.0,0.042417]
[1773476797827,0.0014,70723.0,70715.0,0.042417]
[1773476798536,0.0014,70723.0,70716.0,0.042416]
[1773476819657,0.0014,70722.0,70716.0,0.042416]
[1773476819855,0.0014,70721.0,70716.0,0.07490557]
[1773476820057,0.042409,70729.0,70716.0,0.07490557]
[1773476820255,0.19981126,70728.0,70716.0,0.07490557]
[1773476820457,0.19841126,70727.0,70716.0,0.07490557]
[1773476820764,0.19841126,70726.0,70716.0,0.07490557]
[1773476820962,0.042409,70729.0,70716.0,0.042416]
[1773476821164,0.19840964,70728.0,70716.0,0.042416]
[1773476821367,0.19980964,70727.0,70716.0,0.042416]
[1773476821665,0.042409,70729.0,70716.0,0.042416]
[1773476821855,0.0014,70728.0,70716.0,0.042416]
[1773476822254,0.0014,70727.0,70716.0,0.042416]
[1773476822764,0.0014,70726.0,70716.0,0.042416]
[1773476822964,0.042409,70729.0,70716.0,0.042416]
[1773476823164,0.0014,70728.0,70716.0,0.042416]
[1773476823464,0.042409,70729.0,70716.0,0.042416]
[1773476823660,0.0014,70728.0,70716.0,0.042416]
[1773476823870,0.0014,70727.0,70716.0,0.042416]
[1773476824059,0.042409,70729.0,70716.0,0.042416]
[1773476824254,0.0014,70728.0,70716.0,0.042416]
[1773476824654,0.0014,70727.0,70716.0,0.042416]
[1773476825059,0.042409,70729.0,70716.0,0.042416]
[1773476825265,0.0014,70728.0,70716.0,0.042416]
[1773476825571,0.042409,70729.0,70716.0,0.042416]
[1773476825766,0.0014,70728.0,70716.0,0.042416]
[1773476826171,0.0014,70727.0,70716.0,0.042416]
[1773476826469,0.042409,70729.0,70717.0,0.042415]
[1773476826657,0.0014,70728.0,70717.0,0.042415]
[1773476826861,0.0014,70727.0,70715.0,0.042417]
[1773476827061,0.04241,70727.0,70715.0,0.042417]
[1773476827261,0.0014,70726.0,70715.0,0.042417]
[1773476830265,0.0014,70726.0,70716.0,0.042416]
[1773476831565,0.0014,70725.0,70716.0,0.042416]
[1773476831962,0.042409,70730.0,70716.0,0.042416]
[1773476832161,0.0014,70729.0,70716.0,0.042416]
[1773476832475,0.042409,70730.0,70716.0,0.042416]
[1773476832769,0.0014,70728.0,70717.0,0.042415]
[1773476832977,0.042409,70730.0,70717.0,0.042415]
[1773476833271,0.0014,70727.0,70717.0,0.042415]
[1773476833466,0.042409,70730.0,70718.0,0.042415]
[1773476833670,0.0014,70726.0,70718.0,0.042415]
[1773476834373,0.042409,70730.0,70718.0,0.042415]
[1773476834572,0.0014,70729.0,70718.0,0.042415]
[1773476835072,0.0014,70728.0,70718.0,0.042415]
[1773476835261,0.12404359,70740.0,70717.0,0.02746711]
[1773476835464,0.05115843,70745.0,70723.0,0.02746711]
[1773476835664,0.042403,70739.0,70726.0,0.04241]
[1773476835864,0.05115843,70745.0,70719.0,0.02746711]
[1773476836159,0.042402,70740.0,70727.0,0.04241]
[1773476836474,0.043402,70740.0,70727.0,0.04241]
[1773476836670,0.0014,70739.0,70727.0,0.04241]
[1773476836867,0.042403,70739.0,70727.0,0.04241]
[1773476837067,0.0014,70738.0,70727.0,0.04241]
[1773476837469,0.0014,70737.0,70727.0,0.04241]
[1773476837973,0.0014,70736.0,70727.0,0.04241]
[1773476838374,0.043403,70739.0,70727.0,0.04241]
[1773476838575,0.0014,70738.0,70727.0,0.04241]
[1773476838966,0.0014,70737.0,70727.0,0.04241]
[1773476839878,0.0014,70736.0,70727.0,0.04241]
[1773476840372,0.042403,70739.0,70727.0,0.04241]
[1773476840578,0.0014,70735.0,70727.0,0.04241]
[1773476840769,0.042403,70739.0,70727.0,0.04241]
[1773476840971,0.0014,70738.0,70725.0,0.042411]
[1773476842875,0.043803,70738.0,70725.0,0.042411]
[1773476852191,0.042404,70737.0,70725.0,0.042411]
[1773476853886,0.0014,70738.0,70712.0,0.25337005]
[1773476853887,0.042411,70726.0,70712.0,0.25337005]
[1773476854192,0.0014,70725.0,70711.0,0.04230824]
[1773476854394,0.0014,70724.0,70711.0,0.04230824]
[1773476854587,0.0014,70723.0,70710.0,0.07383118]
[1773476854891,0.0014,70722.0,70715.0,0.042416]
[1773476855191,0.0014,70721.0,70715.0,0.042416]
[1773476855486,0.04241,70728.0,70715.0,0.08641832]
[1773476855679,0.0014,70727.0,70715.0,0.08641832]
[1773476857095,0.04381,70727.0,70715.0,0.08641832]
[1773476857592,0.04381,70727.0,70715.0,0.042416]
[1773476858689,0.042411,70726.0,70713.0,0.042418]
[1773476858993,0.042411,70725.0,70713.0,0.042418]
[1773476863390,0.0028,70722.0,70713.0,0.042418]
[1773476863692,0.0014,70721.0,70713.0,0.042418]
[1773476867493,0.0028,70720.0,70711.0,0.042419]
[1773476867996,0.0028,70720.0,70709.0,0.04242]
[1773476868387,0.0028,70720.0,70710.0,0.04242]
[1773476869493,0.0028,70720.0,70711.0,0.042419]
[1773476869694,0.0014,70721.0,70711.0,0.042419]
[1773476883203,0.0014,70721.0,70712.0,0.042418]
[1773476890698,0.0014,70721.0,70713.0,0.042418]
[1773476903821,0.0014,70721.0,70711.0,0.042419]
[1773476904720,0.0014,70721.0,70707.0,0.03586619]
[1773476904912,0.0014,70721.0,70707.0,0.07828719]
[1773476904913,0.045215,70719.0,70707.0,0.07828719]
[1773476905513,0.04705783,70718.0,70702.0,0.25337005]
[1773476905717,0.042421,70709.0,70693.0,0.28431609]
[1773476905907,0.042418,70713.0,70700.0,0.042425]
[1773476906111,0.0014,70712.0,70700.0,0.042425]
[1773476906313,0.0028,70708.0,70700.0,0.042425]
[1773476908919,0.0028,70708.0,70698.0,0.042427]
[1773476909811,0.0028,70708.0,70699.0,0.042426]
[1773476910423,0.0028,70708.0,70700.0,0.042426]
[1773476910816,0.0028,70708.0,70702.0,0.042425]
[1773476912625,0.0028,70708.0,70692.0,0.03262594]
[1773476912626,0.0028,70708.0,70703.0,0.042424]
[1773476917132,0.0028,70708.0,70704.0,0.042423]
[1773476917732,0.0028,70708.0,70692.0,0.03262594]
[1773476918526,0.0028,70708.0,70693.0,0.02031663]
[1773476918933,0.0028,70708.0,70703.0,0.042424]
[1773476920434,0.04845783,70712.0,70703.0,0.042424]
[1773476923641,0.04845783,70712.0,70704.0,0.042423]
[1773476923844,0.04845783,70712.0,70702.0,0.042424]
[1773476923845,0.0028,70707.0,70702.0,0.042424]
[1773476924038,0.0014,70706.0,70702.0,0.042424]
[1773476924238,0.0014,70705.0,70703.0,0.042424]
[1773476924441,0.0014,70704.0,70703.0,0.042424]
[1773476925247,0.0014,70704.0,70693.0,0.02031663]
[1773476925449,0.04705783,70712.0,70704.0,0.042423]
[1773476925641,0.04705783,70710.0,70692.0,0.00919]
[1773476925837,0.0014,70711.0,70692.0,0.02788641]
[1773476926140,0.19881778,70710.0,70698.0,0.042427]
[1773476926346,0.04382,70711.0,70698.0,0.042427]
[1773476926347,0.0028,70703.0,70698.0,0.042427]
[1773476926543,0.0014,70702.0,70698.0,0.042427]
[1773476926940,0.0014,70701.0,70698.0,0.042427]
[1773476927141,0.0014,70700.0,70698.0,0.042427]
[1773476927341,0.0014,70699.0,70698.0,0.042427]
[1773476929140,0.04705783,70714.0,70701.0,0.042425]
[1773476929339,0.20025503,70713.0,70701.0,0.042425]
[1773476929536,0.19885503,70712.0,70701.0,0.042425]
[1773476929745,0.19885503,70711.0,70701.0,0.042425]
[1773476929944,0.19885503,70710.0,70701.0,0.042425]
[1773476930245,0.0014,70713.0,70701.0,0.042425]
[1773476930446,0.19887933,70712.0,70701.0,0.042425]
[1773476930754,0.19887933,70711.0,70701.0,0.042425]
[1773476930943,0.19887933,70710.0,70701.0,0.042425]
[1773476931143,0.0014,70713.0,70701.0,0.042425]
[1773476931344,0.19891079,70712.0,70701.0,0.042425]
[1773476931644,0.19891079,70711.0,70701.0,0.042425]
[1773476931847,0.0014,70713.0,70701.0,0.042425]
[1773476931848,0.19891079,70710.0,70701.0,0.042425]
[1773476932049,0.19891079,70709.0,70701.0,0.042425]
[1773476932348,0.00854,70716.0,70693.0,0.02395452]
[1773476932549,0.19894813,70715.0,70699.0,0.07390346]
[1773476932851,0.20034813,70714.0,70700.0,0.0315506]
[1773476933052,0.00854,70716.0,70700.0,0.0315506]
[1773476933252,0.0014,70715.0,70700.0,0.0315506]
[1773476933454,0.0014,70715.0,70707.0,0.042421]
[1773476937749,0.0014,70714.0,70708.0,0.042421]